bitfinex-derivatives/quotes_BNBF0:USTF0_20250305
["timestamp","ask_amount","ask_price","bid_price","bid_amount"]
[1741180186780,4.01551834,597.02,595.82,1.58298394]
[1741180187076,5.17961101,597.01,595.83,1.2473121]
[1741180187271,5.17961101,597.0,595.85,0.33565494]
[1741180187475,4.01531713,596.99,595.85,0.33565494]
[1741180187669,4.01531713,596.98,595.85,0.33565494]
[1741180187875,4.01531713,596.97,595.85,0.33565494]
[1741180188072,4.01531713,596.96,595.85,0.33565494]
[1741180188271,4.01531713,596.95,595.85,0.33565494]
[1741180188476,3.70621946,596.94,595.85,0.33565494]
[1741180188674,2.54212679,596.93,595.85,0.33565494]
[1741180188872,2.54212679,596.92,595.85,0.33565494]
[1741180189075,2.54212679,596.91,595.85,0.33565494]
[1741180189377,3.70621946,596.9,595.85,0.33565494]
[1741180189576,0.92074396,596.89,595.85,0.33565494]
[1741180189777,0.92074396,596.88,595.85,0.33565494]
[1741180189975,0.92074396,596.87,595.85,0.33565494]
[1741180190176,2.08410512,596.86,595.85,0.33565494]
[1741180190373,0.91990377,596.85,595.85,0.33565494]
[1741180190574,1.16409267,596.85,595.85,0.33565494]
[1741180190980,3.0922574,596.99,595.85,0.33565494]
[1741180191177,4.01203731,596.98,595.85,0.33565494]
[1741180191374,5.17500035,596.97,595.85,0.33565494]
[1741180191573,4.01203731,596.96,595.85,0.33565494]
[1741180191779,4.01203731,596.95,595.85,0.33565494]
[1741180191976,2.08274295,596.94,595.85,0.33565494]
[1741180192181,1.16296304,596.94,595.85,0.33565494]
[1741180192479,0.91970482,596.93,595.85,0.33565494]
[1741180192676,3.70151885,596.92,595.85,0.33565494]
[1741180192877,2.53906203,596.91,595.85,0.33565494]
[1741180193073,2.53879602,596.9,595.85,0.33565494]
[1741180193274,2.53879602,596.89,595.85,0.33565494]
[1741180193477,2.53879602,596.88,595.85,0.33565494]
[1741180193673,2.53879602,596.87,595.85,0.33565494]
[1741180193878,0.99138701,597.21,595.85,0.33565494]
[1741180193879,2.08224326,596.86,595.85,0.33565494]
[1741180194077,0.91970482,596.85,595.85,0.33565494]
[1741180194279,0.91970482,596.84,595.85,0.33565494]
[1741180194475,1.16253844,596.84,595.85,0.33565494]
[1741180195075,0.29169303,597.05,595.85,0.33565494]
[1741180195076,1.16253844,596.83,595.85,0.33565494]
[1741180195475,3.70074568,596.97,595.85,0.33565494]
[1741180195680,2.53820724,596.96,595.85,0.33565494]
[1741180195886,0.91925817,596.95,595.85,0.33565494]
[1741180196087,0.91949457,596.94,595.85,0.33565494]
[1741180196281,1.16253844,596.95,595.85,0.33565494]
[1741180196583,2.08202258,596.94,595.85,0.33565494]
[1741180196785,1.16253844,596.94,595.85,0.33565494]
[1741180196979,5.17250467,597.07,595.85,0.33565494]
[1741180197181,4.00996623,597.06,595.85,0.33565494]
[1741180197381,4.00996623,597.05,595.85,0.33565494]
[1741180197577,5.17250467,597.04,595.85,0.33565494]
[1741180197781,4.00996623,597.03,595.85,0.33565494]
[1741180197978,4.00996623,597.02,595.85,0.33565494]
[1741180198183,4.00996623,597.01,595.85,0.33565494]
[1741180198481,3.70146253,597.0,595.85,0.33565494]
[1741180198688,2.53892409,596.99,595.85,0.33565494]
[1741180198984,3.70146253,596.98,595.85,0.33565494]
[1741180199283,1.16253844,596.98,595.85,0.33565494]
[1741180199480,4.0093771,597.23,595.85,0.33565494]
[1741180199679,4.0093771,597.22,595.85,0.33565494]
[1741180199880,5.17173888,597.21,595.85,0.33565494]
[1741180200080,4.0093771,597.2,595.96,1.2473121]
[1741180200279,5.17173888,597.19,595.98,0.33558173]
[1741180200480,4.0093771,597.18,595.98,0.33558173]
[1741180200684,5.17173888,597.17,595.98,0.33558173]
[1741180200987,4.0093771,597.16,595.98,0.33558173]
[1741180201183,4.0093771,597.15,595.98,0.33558173]
[1741180201384,4.0093771,597.14,595.98,0.33558173]
[1741180201586,4.0093771,597.13,595.98,0.33558173]
[1741180201787,2.53847205,597.12,595.98,0.33558173]
[1741180202086,0.91931566,597.11,595.98,0.33558173]
[1741180202285,0.91943537,597.1,595.98,0.33558173]
[1741180202488,0.91943537,597.09,595.98,0.33558173]
[1741180202787,5.17229099,597.21,595.98,0.33558173]
[1741180202988,4.00992921,597.2,595.98,0.33558173]
[1741180203186,4.00992921,597.19,595.98,0.33558173]
[1741180203484,1.16236178,597.18,595.98,0.33558173]
[1741180203787,3.70154273,597.31,595.98,0.33558173]
[1741180204081,2.53927874,597.3,595.98,0.33558173]
[1741180204287,0.91953833,597.29,595.98,0.33558173]
[1741180204487,0.91953833,597.28,596.01,1.2473121]
[1741180204687,2.08190011,597.27,596.03,0.33555357]
[1741180204982,2.08190011,597.26,596.03,0.33555357]
[1741180205383,2.08190011,597.25,596.03,0.33555357]
[1741180205586,1.16236178,597.25,596.03,0.33555357]
[1741180205889,3.70041553,597.35,596.03,0.33555357]
[1741180206091,2.53805375,597.34,596.03,0.33555357]
[1741180206289,3.70041553,597.33,596.03,0.33555357]
[1741180206491,2.53805375,597.32,596.03,0.33555357]
[1741180206791,2.08152047,597.31,596.03,0.33555357]
[1741180206990,0.91915869,597.3,596.03,0.33555357]
[1741180207189,2.08152047,597.29,596.03,0.33555357]
[1741180207390,1.16236178,597.29,596.03,0.33555357]
[1741180207889,1.47078176,597.37,596.03,0.33555357]
[1741180210291,1.47078176,597.37,596.21,1.2473121]
[1741180210590,1.47078176,597.37,596.23,0.33544102]
[1741180241627,1.47078176,597.37,596.26,1.2473121]
[1741180241824,1.47078176,597.37,596.28,0.33541289]
[1741180243231,1.47078176,597.37,596.69,1.2473121]
[1741180243430,1.47078176,597.37,596.7,0.3351768]
[1741180245528,1.47078176,597.37,596.72,1.2473121]
[1741180245928,1.47078176,597.37,596.73,0.33515995]
[1741180260639,1.47078176,597.37,596.8,1.2473121]
[1741180262337,1.47078176,597.37,596.81,0.33511502]
[1741180263041,1.47078176,597.37,596.84,1.2473121]
[1741180263344,1.47078176,597.37,596.85,0.33509256]
[1741180265740,1.47078176,597.37,596.85,1.58240466]
[1741180267246,1.47078176,597.37,596.93,1.2473121]
[1741180267447,1.47078176,597.37,596.94,0.33504204]
[1741180268940,1.47078176,597.37,596.96,1.2473121]
[1741180269146,1.47078176,597.37,596.97,0.33502521]
[1741180271248,1.47078176,597.37,597.07,1.2473121]
[1741180271845,1.47078176,597.37,597.08,0.33496348]
[1741180274654,1.47078176,597.37,597.17,1.2473121]
[1741180275058,1.47078176,597.37,597.18,0.33490739]
[1741180279754,1.47078176,597.37,597.23,1.2473121]
[1741180281561,1.47078176,597.37,597.18,1.58221949]
[1741180281960,1.47078176,597.37,597.19,0.33490179]
[1741180303472,1.47078176,597.37,597.21,1.2473121]
[1741180303674,1.47078176,597.37,597.22,0.33488496]
[1741180305081,1.47078176,597.37,597.33,1.2473121]
[1741180305473,1.47078176,597.37,597.34,0.33481769]
[1741180325396,1.47078176,597.37,597.03,1.25070033]
[1741180325592,1.47078176,597.37,597.1,0.29126457]
[1741180325788,1.47078176,597.37,597.03,1.25070033]
[1741180325993,1.47078176,597.37,597.03,1.58569187]
[1741180326191,1.47078176,597.37,597.03,0.33499154]
[1741180326896,1.47078176,597.37,597.04,0.29130115]
[1741180328692,1.47078176,597.37,597.03,0.33499154]
[1741180335002,4.03214139,597.87,597.03,0.33499154]
[1741180335304,2.55303011,597.86,597.03,0.33499154]
[1741180335499,2.55303011,597.85,597.03,0.33499154]
[1741180335704,0.92444455,597.84,597.03,0.33499154]
[1741180336006,2.09306631,597.83,597.03,0.33499154]
[1741180336206,1.16862176,597.83,597.03,0.33499154]
[1741180336602,3.10649776,598.05,597.03,0.33499154]
[1741180336800,4.0305825,598.04,597.03,0.33499154]
[1741180337005,4.0305825,598.03,597.03,0.33499154]
[1741180337306,5.19887597,598.02,597.03,0.33499154]
[1741180337498,5.19887597,598.01,597.03,0.33499154]
[1741180337699,4.0305825,598.0,597.03,0.33499154]
[1741180337901,4.0305825,597.99,597.03,0.33499154]
[1741180338201,4.0305825,597.98,597.03,0.33499154]
[1741180338406,4.0305825,597.97,597.03,0.33499154]
[1741180338607,4.0305825,597.96,597.03,0.33499154]
[1741180338803,5.19887597,597.95,597.03,0.33499154]
[1741180339004,4.0305825,597.94,597.03,0.33499154]
[1741180339204,4.0305825,597.93,597.03,0.33499154]
[1741180339402,5.19887597,597.92,597.03,0.33499154]
[1741180339706,4.0305825,597.91,597.03,0.33499154]
[1741180339902,3.72035722,597.9,597.03,0.33499154]
[1741180340102,2.55206375,597.89,597.03,0.33499154]
[1741180340303,2.55206375,597.88,597.03,0.33499154]
[1741180340501,2.55206375,597.87,597.03,0.33499154]
[1741180340704,0.29115857,598.1,597.03,0.33499154]
[1741180340705,2.09237821,597.86,597.03,0.33499154]
[1741180340904,0.92408474,597.85,597.03,0.33499154]
[1741180341203,2.09237821,597.84,597.03,0.33499154]
[1741180341400,1.16829347,597.84,597.03,0.33499154]
[1741180341603,2.09266889,597.83,597.03,0.33499154]
[1741180341907,0.92436537,597.82,597.03,0.33499154]
[1741180342105,1.16829347,597.81,597.03,0.33499154]
[1741180342607,3.10718018,598.01,597.03,0.33499154]
[1741180342807,4.03160586,598.0,597.03,0.33499154]
[1741180343107,5.20024753,597.99,597.03,0.33499154]
[1741180343299,4.03160586,597.98,597.03,0.33499154]
[1741180343504,4.03160586,597.97,597.03,0.33499154]
[1741180343707,4.03160586,597.96,597.03,0.33499154]
[1741180343908,4.03160586,597.95,597.03,0.33499154]
[1741180344102,0.99588135,598.05,597.03,0.33499154]
[1741180344103,5.20024753,597.94,597.03,0.33499154]
[1741180344308,4.03160586,597.93,597.03,0.33499154]
[1741180344506,4.03160586,597.92,597.03,0.33499154]
[1741180344706,3.72155651,597.91,597.03,0.33499154]
[1741180344907,2.55312333,597.9,597.03,0.33499154]
[1741180345209,2.55312333,597.89,597.03,0.33499154]
[1741180345508,2.55316885,597.88,597.03,0.33499154]
[1741180345708,2.55316885,597.87,597.03,0.33499154]
[1741180345902,2.09306735,597.86,597.03,0.33499154]
[1741180346100,1.16864167,597.85,597.03,0.33499154]
[1741180346507,1.47923045,598.06,597.03,0.33499154]
[1741180346703,4.03254697,598.05,597.03,0.33499154]
[1741180346905,4.03254697,598.04,597.03,0.33499154]
[1741180347106,5.20141638,598.03,597.03,0.33499154]
[1741180347307,4.03254697,598.02,597.03,0.33499154]
[1741180347503,4.03254697,598.01,597.03,0.33499154]
[1741180347709,5.20141638,598.0,597.03,0.33499154]
[1741180347907,4.03254697,597.99,597.03,0.33499154]
[1741180348104,1.62879701,597.98,597.03,0.33499154]
[1741180348305,5.20175669,597.97,597.03,0.33499154]
[1741180348512,4.03292126,597.96,597.03,0.33499154]
[1741180348706,4.03283758,597.95,597.03,0.33499154]
[1741180348908,4.03287972,597.94,597.03,0.33499154]
[1741180349113,2.55344711,597.93,597.03,0.33499154]
[1741180349313,3.72231652,597.92,597.03,0.33499154]
[1741180349512,2.55344711,597.91,597.03,0.33499154]
[1741180349714,2.09351951,597.9,597.03,0.33499154]
[1741180350008,1.16886941,597.9,597.03,0.33499154]
[1741180350217,3.10889283,598.11,597.03,0.33499154]
[1741180350516,4.03374612,598.1,597.03,0.33499154]
[1741180350715,4.03374612,598.09,597.03,0.33499154]
[1741180351015,0.99604481,598.15,597.03,0.33499154]
[1741180351016,5.20299058,598.08,597.03,0.33499154]
[1741180351219,4.03374612,598.07,597.03,0.33499154]
[1741180351415,4.03374612,598.06,597.03,0.33499154]
[1741180351719,4.03374612,598.05,597.03,0.33499154]
[1741180351920,4.03374612,598.04,597.09,1.25070033]
[1741180352223,1.16924446,598.05,597.09,1.25070033]
[1741180352224,5.20299058,598.03,597.11,0.33494665]
[1741180352518,4.03374612,598.02,597.11,0.33494665]
[1741180352716,4.03374612,598.01,597.11,0.33494665]
[1741180352917,4.03374612,598.0,597.11,0.33494665]
[1741180353116,5.20299058,597.99,597.11,0.33494665]
[1741180353318,4.03374612,597.98,597.11,0.33494665]
[1741180353515,5.20299058,597.97,597.11,0.33494665]
[1741180353719,4.03374612,597.96,597.11,0.33494665]
[1741180354015,4.03374612,597.95,597.11,0.33494665]
[1741180354220,4.03374612,597.94,597.11,0.33494665]
[1741180354523,4.03400995,597.93,597.11,0.33494665]
[1741180354820,4.03400995,597.92,597.11,0.33494665]
[1741180355020,2.55416676,597.91,597.11,0.33494665]
[1741180355216,2.55416676,597.9,597.11,0.33494665]
[1741180355420,2.55416676,597.89,597.11,0.33494665]
[1741180355621,2.55416676,597.88,597.11,0.33494665]
[1741180355817,2.55416676,597.87,597.11,0.33494665]
[1741180356019,2.55416676,597.86,597.11,0.33494665]
[1741180356219,4.03397586,597.85,597.11,0.33494665]
[1741180356418,4.03397351,597.84,597.11,0.33494665]
[1741180356617,3.72341122,597.83,597.11,0.33494665]
[1741180356820,2.55416676,597.82,597.11,0.33494665]
[1741180357018,2.55416676,597.81,597.11,0.33494665]
[1741180357223,2.55416676,597.8,597.11,0.33494665]
[1741180357523,0.92485329,597.79,597.11,0.33494665]
[1741180357718,0.92485329,597.78,597.11,0.33494665]
[1741180357920,0.92485329,597.77,597.11,0.33494665]
[1741180358224,1.16924446,597.79,597.11,0.33494665]
[1741180358524,2.55404363,597.78,597.11,0.33494665]
[1741180358822,1.62900942,597.77,597.11,0.33494665]
[1741180359317,4.03325204,597.76,597.11,0.33494665]
[1741180359519,1.62900942,597.76,597.11,0.33494665]
[1741180360029,2.40404617,597.75,597.11,0.33494665]
[1741180360229,2.40404617,597.74,597.11,0.33494665]
[1741180360830,0.92463314,597.73,597.11,0.33494665]
[1741180361131,2.09350299,597.72,597.11,0.33494665]
[1741180361331,1.16886985,597.72,597.11,0.33494665]
[1741180361731,0.92453159,597.71,597.11,0.33494665]
[1741180361932,1.47931247,597.84,597.11,0.33494665]
[1741180362129,4.03258906,597.83,597.11,0.33494665]
[1741180362329,4.03258906,597.82,597.11,0.33494665]
[1741180362529,5.20152144,597.81,597.11,0.33494665]
[1741180362729,4.03258906,597.8,597.11,0.33494665]
[1741180363029,5.20152144,597.79,597.11,0.33494665]
[1741180363229,4.03258906,597.78,597.11,0.33494665]
[1741180363425,2.55327659,597.77,597.11,0.33494665]
[1741180363631,2.55341028,597.76,597.11,0.33494665]
[1741180363831,2.55341028,597.75,597.11,0.33494665]
[1741180364033,2.55341028,597.74,597.11,0.33494665]
[1741180364233,2.09359251,597.73,597.11,0.33494665]
[1741180364532,0.92480471,597.72,597.11,0.33494665]
[1741180364735,1.47967245,597.94,597.11,0.33494665]
[1741180365034,4.03376309,597.93,597.11,0.33494665]
[1741180365333,5.20297813,597.92,597.11,0.33494665]
[1741180365633,5.20297813,597.91,597.11,0.33494665]
[1741180365832,4.03376309,597.9,597.11,0.33494665]
[1741180366027,4.03376309,597.89,597.11,0.33494665]
[1741180366228,4.03376309,597.88,597.11,0.33494665]
[1741180366430,4.03376309,597.87,597.11,0.33494665]
[1741180366631,4.03376309,597.86,597.11,0.33494665]
[1741180366830,4.03376309,597.85,597.11,0.33494665]
[1741180367026,5.20297813,597.84,597.11,0.33494665]
[1741180367233,4.03376309,597.83,597.11,0.33494665]
[1741180367433,4.03376309,597.82,597.11,0.33494665]
[1741180367633,4.03376309,597.81,597.11,0.33494665]
[1741180367831,4.03376309,597.8,597.11,0.33494665]
[1741180368028,5.20297813,597.79,597.11,0.33494665]
[1741180368232,4.03376309,597.78,597.11,0.33494665]
[1741180368532,5.20297813,597.77,597.11,0.33494665]
[1741180368736,0.99611329,597.91,597.11,0.33494665]
[1741180368737,5.20297813,597.76,597.11,0.33494665]
[1741180369034,4.03376309,597.75,597.11,0.33494665]
[1741180369233,4.03376309,597.74,597.11,0.33494665]
[1741180369429,4.03376309,597.73,597.11,0.33494665]
[1741180369629,5.20297813,597.72,597.11,0.33494665]
[1741180369830,2.55409064,597.71,597.11,0.33494665]
[1741180370028,2.55409064,597.7,597.11,0.33494665]
[1741180370234,2.55409064,597.69,597.11,0.33494665]
[1741180370434,2.55409064,597.68,597.11,0.33494665]
[1741180370635,1.16921504,597.7,597.11,0.33494665]
[1741180370636,0.9248281,597.67,597.11,0.33494665]
[1741180370830,0.9248281,597.66,597.11,0.33494665]
[1741180371033,0.9248281,597.65,597.11,0.33494665]
[1741180371234,0.9248281,597.64,597.11,0.33494665]
[1741180371430,1.16921504,597.63,597.11,0.33494665]
[1741180371829,1.48001242,597.86,597.11,0.33494665]
[1741180372032,4.03468941,597.85,597.11,0.33494665]
[1741180372235,4.03468941,597.84,597.11,0.33494665]
[1741180372437,4.03468941,597.83,597.11,0.33494665]
[1741180372638,4.03468941,597.82,597.11,0.33494665]
[1741180372837,5.20425308,597.81,597.11,0.33494665]
[1741180373038,4.03468941,597.8,597.11,0.33494665]
[1741180373240,4.03468941,597.79,597.11,0.33494665]
[1741180373435,4.03468941,597.78,597.11,0.33494665]
[1741180373639,5.20463591,597.77,597.11,0.33494665]
[1741180373833,4.03507224,597.76,597.11,0.33494665]
[1741180374037,5.20463591,597.75,597.11,0.33494665]
[1741180374234,4.03507224,597.74,597.11,0.33494665]
[1741180374436,4.03507224,597.73,597.11,0.33494665]
[1741180374642,3.72462349,597.72,597.11,0.33494665]
[1741180374940,2.55505982,597.71,597.11,0.33494665]
[1741180375142,2.55505982,597.7,597.11,0.33494665]
[1741180375340,2.09461483,597.69,597.11,0.33494665]
[1741180375541,1.16956367,597.69,597.11,0.33494665]
[1741180375840,1.48090648,597.9,597.11,0.33494665]
[1741180376035,4.03737429,597.89,597.11,0.33494665]
[1741180376239,5.20772312,597.88,597.11,0.33494665]
[1741180376439,4.03737429,597.87,597.11,0.33494665]
[1741180376641,5.20772312,597.86,597.11,0.33494665]
[1741180376941,4.03737429,597.85,597.11,0.33494665]
[1741180377140,4.03737429,597.84,597.11,0.33494665]
[1741180377343,4.03737429,597.83,597.11,0.33494665]
[1741180377537,4.03737429,597.82,597.11,0.33494665]
[1741180377740,4.03737429,597.81,597.11,0.33494665]
[1741180378043,4.03737429,597.8,597.11,0.33494665]
[1741180378343,4.03737429,597.79,597.11,0.33494665]
[1741180378643,5.20772312,597.78,597.11,0.33494665]
[1741180378837,5.20772312,597.77,597.11,0.33494665]
[1741180379142,4.03737429,597.76,597.11,0.33494665]
[1741180379344,4.03737429,597.75,597.11,0.33494665]
[1741180379538,4.03737429,597.74,597.11,0.33494665]
[1741180379741,3.72681664,597.73,597.11,0.33494665]
[1741180379937,4.03842226,597.72,597.11,0.33494665]
[1741180380136,2.55646781,597.71,597.11,0.33494665]
[1741180380341,2.55646781,597.7,597.11,0.33494665]
[1741180380536,2.55646781,597.69,597.11,0.33494665]
[1741180380742,4.03852196,597.68,597.11,0.33494665]
[1741180380942,4.03852196,597.67,597.11,0.33494665]
[1741180381239,5.20887079,597.66,597.11,0.33494665]
[1741180381545,2.55646781,597.65,597.11,0.33494665]
[1741180381738,3.72681664,597.64,597.11,0.33494665]
[1741180381941,2.55646781,597.63,597.11,0.33494665]
[1741180382139,5.20893451,597.62,597.11,0.33494665]
[1741180382339,0.92568855,597.61,597.11,0.33494665]
[1741180382544,2.55770091,597.6,597.11,0.33494665]
[1741180382745,2.55770091,597.59,597.11,0.33494665]
[1741180382944,2.55770091,597.58,597.11,0.33494665]
[1741180383240,4.03924125,597.57,597.11,0.33494665]
[1741180383443,4.03924125,597.56,597.11,0.33494665]
[1741180383648,4.03924125,597.55,597.11,0.33494665]
[1741180383845,4.03924125,597.54,597.11,0.33494665]
[1741180384041,5.20959008,597.53,597.11,0.33494665]
[1741180384242,2.55736364,597.52,597.11,0.33494665]
[1741180384442,3.72771247,597.51,597.11,0.33494665]
[1741180384644,2.55736364,597.5,597.11,0.33494665]
[1741180384840,2.55736364,597.49,597.11,0.33494665]
[1741180385039,1.17034883,597.51,597.11,0.33494665]
[1741180385243,3.72730379,597.5,597.11,0.33494665]
[1741180385443,2.55695496,597.49,597.11,0.33494665]
[1741180385644,2.55657883,597.48,597.11,0.33494665]
[1741180385846,2.55657883,597.47,597.11,0.33494665]
[1741180386046,1.17034883,597.48,597.11,0.33494665]
[1741180386047,0.92589917,597.46,597.11,0.33494665]
[1741180386246,2.55610822,597.45,597.11,0.33494665]
[1741180386447,0.92589917,597.44,597.11,0.33494665]
[1741180386646,3.7263781,597.43,597.11,0.33494665]
[1741180386847,2.55586612,597.42,597.11,0.33494665]
[1741180387039,2.55586612,597.41,597.11,0.33494665]
[1741180387240,5.20590784,597.4,597.11,0.33494665]
[1741180387444,4.03555901,597.39,596.83,0.29133895]
[1741180387641,2.55586612,597.38,596.83,0.29133895]
[1741180387844,3.72621495,597.37,596.83,0.29133895]
[1741180388041,0.92589917,597.36,596.83,0.29133895]
[1741180388242,1.47936004,597.58,596.83,0.29133895]
[1741180388544,4.03259649,597.57,596.83,0.29133895]
[1741180388751,4.03259649,597.57,596.65,1.25070033]
[1741180388752,4.03259649,597.56,596.65,1.25070033]
[1741180388947,4.03259649,597.55,596.83,0.29135968]
[1741180389143,4.03259649,597.54,596.66,0.33519927]
[1741180389348,4.03259649,597.53,596.66,0.33519927]
[1741180389551,5.20157227,597.52,596.66,0.33519927]
[1741180389746,4.03259649,597.51,596.66,0.33519927]
[1741180389942,1.16897578,597.52,596.66,0.33519927]
[1741180389943,4.03259649,597.5,596.67,0.29136578]
[1741180390146,4.03259649,597.49,596.68,0.33518804]
[1741180390348,4.03259649,597.48,596.68,0.33518804]
[1741180390548,4.03259649,597.47,596.68,0.33518804]
[1741180390749,4.03177343,597.46,596.68,0.33518804]
[1741180390950,5.20074921,597.45,596.68,0.33518804]
[1741180391145,4.03054431,597.44,596.68,0.33518804]
[1741180391346,2.55241606,597.43,596.68,0.33518804]
[1741180391550,2.55241606,597.42,596.68,0.33518804]
[1741180391749,0.92457926,597.41,596.68,0.33518804]
[1741180391949,1.16897578,597.43,596.68,0.33518804]
[1741180392147,2.47565318,597.62,596.68,0.33518804]
[1741180392148,1.16897578,597.41,596.68,0.33518804]
[1741180392349,1.16897578,597.42,596.68,0.33518804]
[1741180392847,0.92354132,597.41,596.68,0.33518804]
[1741180393042,1.47814537,597.57,596.68,0.33518804]
[1741180393244,4.02796159,597.56,596.68,0.33518804]
[1741180393450,4.02796159,597.55,596.68,0.33518804]
[1741180393752,4.02796159,597.54,596.68,0.33518804]
[1741180393952,5.19526833,597.53,596.68,0.33518804]
[1741180394146,2.54981622,597.52,596.68,0.33518804]
[1741180394345,3.71712296,597.51,596.68,0.33518804]
[1741180394548,1.16730674,597.51,596.68,0.33518804]
[1741180395048,0.29133773,597.78,596.68,0.33518804]
[1741180395049,3.10367349,597.71,596.68,0.33518804]
[1741180395252,4.02690386,597.7,596.68,0.33518804]
[1741180395453,5.19407622,597.69,596.68,0.33518804]
[1741180395647,4.02690386,597.68,596.68,0.33518804]
[1741180395852,4.02690386,597.67,596.68,0.33518804]
[1741180396052,4.02690386,597.66,596.68,0.33518804]
[1741180396252,4.02690386,597.65,596.68,0.33518804]
[1741180396451,4.02690386,597.64,596.68,0.33518804]
[1741180396652,5.19407622,597.63,596.68,0.33518804]
[1741180396849,4.02690386,597.62,596.68,0.33518804]
[1741180397045,4.02690386,597.61,596.68,0.33518804]
[1741180397250,4.02690386,597.6,596.68,0.33518804]
[1741180397549,2.5496496,597.59,596.68,0.33518804]
[1741180397748,2.5496496,597.58,596.68,0.33518804]
[1741180397948,1.16717236,597.6,596.68,0.33518804]
[1741180397949,2.5496496,597.57,596.68,0.33518804]
[1741180398255,0.92323037,597.56,596.68,0.33518804]
[1741180398447,0.92323037,597.55,596.68,0.33518804]
[1741180398650,1.16717236,597.55,596.68,0.33518804]
[1741180398853,0.9228591,597.54,596.68,0.33518804]
[1741180399050,3.10226681,597.74,596.68,0.33518804]
[1741180399254,4.02510921,597.73,596.68,0.33518804]
[1741180399555,4.02510921,597.72,596.68,0.33518804]
[1741180399754,5.19184196,597.71,596.68,0.33518804]
[1741180399953,4.02510921,597.7,596.68,0.33518804]
[1741180400153,4.02510921,597.69,596.68,0.33518804]
[1741180400353,4.02510921,597.68,596.68,0.33518804]
[1741180400549,4.02510921,597.67,596.68,0.33518804]
[1741180400754,2.5485266,597.66,596.68,0.33518804]
[1741180400955,3.10193754,597.65,596.68,0.33518804]
[1741180401155,5.19151269,597.64,596.68,0.33518804]
[1741180401355,4.02477994,597.63,596.68,0.33518804]
[1741180401552,4.02477994,597.62,596.68,0.33518804]
[1741180401753,4.02477994,597.61,596.68,0.33518804]
[1741180401954,5.19151269,597.6,596.68,0.33518804]
[1741180402152,4.02477994,597.59,596.68,0.33518804]
[1741180402353,4.02477994,597.58,596.68,0.33518804]
[1741180402551,4.02477994,597.57,596.68,0.33518804]
[1741180402761,5.19151269,597.56,596.68,0.33518804]
[1741180402959,4.02477994,597.55,596.68,0.33518804]
[1741180403259,4.02477994,597.54,596.68,0.33518804]
[1741180403559,4.02477994,597.53,596.68,0.33518804]
[1741180403753,4.02477994,597.52,596.68,0.33518804]
[1741180403955,4.02477994,597.51,596.68,0.33518804]
[1741180404159,4.02477994,597.5,596.68,0.33518804]
[1741180404354,4.02477994,597.49,596.68,0.33518804]
[1741180404558,4.02477994,597.48,596.68,0.33518804]
[1741180404759,4.02477994,597.47,596.68,0.33518804]
[1741180404954,4.02477994,597.46,596.68,0.33518804]
[1741180405154,2.5485266,597.45,596.68,0.33518804]
[1741180405362,2.5485266,597.44,596.68,0.33518804]
[1741180405660,2.5485266,597.43,596.68,0.33518804]
[1741180405854,2.5485266,597.42,596.68,0.33518804]
[1741180406058,2.5485266,597.41,596.68,0.33518804]
[1741180406257,3.71525935,597.4,596.68,0.33518804]
[1741180406459,4.0226425,597.39,596.68,0.33518804]
[1741180406657,2.5485266,597.38,596.68,0.33518804]
[1741180406857,3.71525935,597.37,596.68,0.33518804]
[1741180407053,4.0226425,597.36,596.68,0.33518804]
[1741180407260,2.5485266,597.35,596.68,0.33518804]
[1741180407457,2.5485266,597.34,596.68,0.33518804]
[1741180407756,2.5485266,597.33,596.68,0.33518804]
[1741180407964,3.71525935,597.32,596.68,0.33518804]
[1741180408261,4.01350699,597.31,596.68,0.33518804]
[1741180408560,2.53939109,597.3,596.68,0.33518804]
[1741180408760,0.9228424,597.29,596.68,0.33518804]
[1741180408956,0.9228424,597.28,596.68,0.33518804]
[1741180409160,0.9228424,597.27,596.68,0.33518804]
[1741180409456,1.4731707,597.49,596.68,0.33518804]
[1741180409663,2.39388965,597.48,596.68,0.33518804]
[1741180409857,2.39388965,597.47,596.68,0.33518804]
[1741180410161,2.39388965,597.46,596.68,0.33518804]
[1741180410461,3.5580136,597.45,596.68,0.33518804]
[1741180410655,2.39388965,597.44,596.68,0.33518804]
[1741180410857,2.39388965,597.43,596.68,0.33518804]
[1741180411055,3.5580136,597.42,596.68,0.33518804]
[1741180411257,2.39388965,597.41,596.68,0.33518804]
[1741180411459,0.92071895,597.4,596.68,0.33518804]
[1741180411656,0.92071895,597.39,596.68,0.33518804]
[1741180411854,0.92071895,597.38,596.68,0.33518804]
[1741180412056,1.16412395,597.39,596.68,0.33518804]
[1741180412256,1.47354627,597.52,596.68,0.33518804]
[1741180412461,0.9212325,597.51,596.68,0.33518804]
[1741180412658,0.9212325,597.5,596.68,0.33518804]
[1741180412866,0.9212325,597.49,596.68,0.33518804]
[1741180413060,0.9212325,597.48,596.68,0.33518804]
[1741180413263,0.92125694,597.47,596.68,0.33518804]
[1741180413467,2.08599504,597.46,596.68,0.33518804]
[1741180413661,0.92125694,597.45,596.68,0.33518804]
[1741180413861,1.1647381,597.46,596.68,0.33518804]
[1741180413862,0.92125694,597.44,596.68,0.33518804]
[1741180414063,0.92125694,597.43,596.68,0.33518804]
[1741180414266,0.92125694,597.42,596.68,0.33518804]
[1741180414465,0.92125694,597.41,596.68,0.33518804]
[1741180414767,2.08599504,597.4,596.68,0.33518804]